fUST/lending_fUST_20260126
["ID","MTS","AMOUNT","RATE_DAILY","PERIOD"]
[403635955,1769436641795,-3000.0,0.0001632,2]
[403635956,1769436641804,-3000.0,0.0001633,2]
[403635957,1769436641814,-3000.0,0.0001634,2]
[403635958,1769436641823,-3000.0,0.0001635,2]
[403635959,1769436641834,-3000.0,0.0001636,2]
[403635960,1769436641843,-3000.0,0.0001637,2]
[403635961,1769436641852,-3000.0,0.0001638,2]
[403635962,1769436641861,-3000.0,0.0001639,2]
[403635963,1769436641870,-3000.0,0.000164,2]
[403635964,1769436641880,-3000.0,0.0001641,2]
[403635965,1769436641889,-322.740927,0.0001641,7]
[403635966,1769436641898,-3000.0,0.0001642,2]
[403635967,1769436641908,-205.480565,0.0001642,7]
[403635968,1769436641918,-3000.0,0.0001643,2]
[403635969,1769436641928,-479.454652,0.0001643,7]
[403635970,1769436641937,-250.0,0.00016438,2]
[403635971,1769436641947,-150.0,0.00016438,2]
[403635972,1769436641957,-164.53752599,0.00016438,2]
[403635973,1769436641967,-3000.0,0.00016438,2]
[403635974,1769436641975,-3000.0,0.0001644,2]
[403635975,1769436641985,-185.09,0.0001644,2]
[403635976,1769436641994,-185.09,0.0001644,2]
[403635977,1769436642003,-185.09,0.0001644,2]
[403635978,1769436642012,-3000.0,0.0001645,2]
[403635979,1769436642022,-3000.0,0.0001646,2]
[403635980,1769436642031,-459.15166759,0.0001647,2]
[403635981,1769436642041,-3000.0,0.0001647,2]
[403635982,1769436642050,-200.0,0.00016473,2]
[403635983,1769436642059,-3000.0,0.0001648,2]
[403635984,1769436642069,-3000.0,0.0001649,2]
[403635985,1769436642078,-7678.410612,0.0001649,7]
[403635986,1769436642088,-3000.0,0.000165,2]
[403635987,1769436642097,-1000.0,0.000165,2]
[403635988,1769436642107,-3000.0,0.0001651,2]
[403635989,1769436642116,-3000.0,0.0001652,2]
[403635990,1769436642127,-3000.0,0.0001653,2]
[403635991,1769436642137,-3000.0,0.0001654,2]
[403635992,1769436642146,-3000.0,0.0001655,2]
[403635993,1769436642155,-3000.0,0.0001656,2]
[403635994,1769436642165,-497.48189141,0.0001656,2]
[403635995,1769436642175,-1975.94196246,0.0001656,2]
[403635996,1769436642184,-3500.0,0.0001656,2]
[403635997,1769436642193,-3000.0,0.0001657,2]
[403635998,1769436642204,-4032.66127,0.0001658,2]
[403635999,1769436642214,-2000.0,0.00016849,7]
[403636000,1769436642223,-169.87,0.00016933,2]
[403636001,1769436642233,-150.33747135,0.00016986,2]
[403636002,1769436642242,-3500.0,0.00016986,2]
[403636003,1769436642251,-1000.0,0.00017,2]
[403636004,1769436642262,-4000.0,0.00017108,2]
[403636005,1769436642274,-176.929344,0.00017213,7]
[403636006,1769436642283,-1000.0,0.00017266,2]
[403636007,1769436642293,-1000.0,0.00017266,2]
[403636008,1769436642302,-1000.0,0.000175,2]
[403636009,1769436642312,-4000.0,0.00017534,2]
[403636010,1769436642321,-239.538002,0.00017569,7]
[403636011,1769436642330,-4500.0,0.00017656,2]
[403636012,1769436642342,-1000.0,0.00017808,2]
[403636013,1769436642351,-150.0,0.00017808,2]
[403636014,1769436642359,-2193.831603,0.00017809,7]
[403636015,1769436642368,-281.66552966,0.00017842,2]
[403636016,1769436642380,-2000.0,0.000179,7]
[403636017,1769436642389,-1493.36,0.00017976,2]
[403636018,1769436642397,-1000.0,0.00018,2]
[403636019,1769436642407,-4500.0,0.00018082,2]
[403636020,1769436642416,-23930.78163137,0.00018082,3]
[403636021,1769436642426,-9660.27372534,0.00018193,2]
[403636022,1769436642436,-1166.9007296,0.00018219,2]
[403636023,1769436642445,-715.7593693,0.00018329,2]
[403636024,1769436642455,-200.0,0.00018356,2]
[403636025,1769436642465,-169.87,0.00018367,2]
[403636026,1769436642474,-507.2024235,0.0001847,2]
[403636027,1769436642484,-1099.536109,0.00018493,2]
[403636028,1769436642493,-1000.0,0.000185,2]
[403636029,1769436642503,-5000.0,0.0001863,2]
[403636030,1769436642512,-5000.0,0.00018768,2]
[403636031,1769436642522,-151.0,0.00018768,2]
[403636032,1769436642532,-159.7075027,0.00018789,2]
[403636033,1769436642541,-303.10001603,0.000189,2]
[403636034,1769436642551,-11965.39,0.000189,3]
[403636035,1769436642560,-303.10001603,0.000189,2]
[403636037,1769436642570,-251.7262602,0.00018904,2]
[403636039,1769436642580,-2000.0,0.0001895,7]
[403636041,1769436642590,-501.27029717,0.00018989,5]
[403636042,1769436642599,-1000.0,0.00018992,2]
[403636043,1769436642608,-1000.0,0.00018992,2]
[403636044,1769436642618,-579.0,0.00018992,2]
[403636045,1769436642627,-151.0,0.00018999,2]
[403636046,1769436642637,-151.0,0.00018999,2]
[403636047,1769436642647,-1957.856,0.00018999,2]
[403636048,1769436642657,-151.0,0.00018999,2]
[403636049,1769436642666,-151.0,0.00018999,2]
[403636050,1769436642676,-151.0,0.00018999,2]
[403636051,1769436642686,-151.0,0.00018999,2]
[403636052,1769436642696,-151.0,0.00018999,2]
[403636053,1769436642705,-151.0,0.00018999,2]
[403636054,1769436642716,-238.51246012,0.00018999,2]
[403636055,1769436642726,-2773.56790519,0.00018999,2]
[403636056,1769436642736,-209.40437684,0.00018999,2]
[403636057,1769436642746,-289.41339882,0.00018999,2]
[403636058,1769436642756,-217.15233878,0.00018999,2]
[403636059,1769436642765,-225.18697532,0.00018999,2]
[403636060,1769436642775,-233.51889341,0.00018999,2]
[403636061,1769436642785,-1736.20311273,0.00018999,2]
[403636062,1769436642794,-242.15909246,0.00018999,2]
[403636063,1769436642804,-251.11897888,0.00018999,2]
[403636064,1769436642813,-260.4103811,0.00018999,2]
[403636065,1769436642823,-270.0455652,0.00018999,2]
[403636066,1769436642834,-280.03725112,0.00018999,2]
[403636067,1769436642844,-290.39862941,0.00018999,2]
[403636068,1769436642854,-500.0,0.00018999,2]
[403636069,1769436642863,-301.1433787,0.00018999,2]
[403636070,1769436642873,-500.0,0.00018999,2]
[403636071,1769436642882,-500.0,0.00018999,2]
[403636072,1769436642891,-500.0,0.00018999,2]
[403636073,1769436642901,-1000.0,0.00019,2]
[403636074,1769436642910,-150.0,0.00019029,2]
[403636075,1769436642920,-2150.0,0.00019029,2]
[403636076,1769436642929,-179.0,0.00019029,2]
[403636077,1769436642939,-2030.296672,0.00019054,2]
[403636078,1769436642948,-303.10001603,0.00019089,2]
[403636079,1769436642957,-303.10001603,0.00019089,2]
[403636080,1769436642967,-1885.41532801,0.00019109,2]
[403636081,1769436642977,-38000.0,0.00019169,3]
[403636082,1769436642987,-2467.5559991,0.00019178,3]
[403636083,1769436642997,-507.9665,0.00019178,2]
[403636084,1769436643007,-38000.0,0.00019178,3]
[403636085,1769436643018,-507.9665,0.00019178,2]
[403636086,1769436643028,-507.9665,0.00019178,2]
[403636087,1769436643038,-507.9665,0.00019178,2]
[403636088,1769436643047,-507.9665,0.00019178,2]
[403636089,1769436643056,-507.9665,0.00019178,2]
[403636090,1769436643065,-507.9665,0.00019178,2]
[403636091,1769436643074,-507.9665,0.00019178,2]
[403636092,1769436643084,-507.9665,0.00019178,2]
[403636093,1769436643093,-507.9665,0.00019178,2]
[403636094,1769436643102,-507.9665,0.00019178,2]
[403636095,1769436643111,-507.9665,0.00019178,2]
[403636096,1769436643121,-200.0,0.00019178,2]
[403636097,1769436643131,-507.9665,0.00019178,2]
[403636098,1769436643141,-507.9665,0.00019178,2]
[403636099,1769436643151,-507.9665,0.00019178,2]
[403636100,1769436643160,-507.9665,0.00019178,2]
[403636101,1769436643169,-507.9665,0.00019178,2]
[403636102,1769436643179,-507.9665,0.00019178,2]
[403636103,1769436643188,-507.9665,0.00019178,2]
[403636104,1769436643197,-507.9665,0.00019178,2]
[403636105,1769436643206,-507.9665,0.00019178,2]
[403636106,1769436643215,-507.9665,0.00019178,2]
[403636107,1769436643224,-507.9665,0.00019178,2]
[403636108,1769436643234,-507.9665,0.00019178,2]
[403636109,1769436643243,-384.78,0.00019178,2]
[403636110,1769436643253,-507.96,0.00019178,2]
[403636111,1769436643263,-507.96,0.00019178,2]
[403636112,1769436643272,-273.764497,0.00019178,2]
[403636113,1769436643283,-273.764497,0.00019178,2]
[403636114,1769436643292,-273.764497,0.00019178,2]
[403636115,1769436643302,-209.463132,0.00019178,2]
[403636116,1769436643312,-273.764497,0.00019178,2]
[403636117,1769436643322,-209.463132,0.00019178,2]
[403636118,1769436643332,-209.463132,0.00019178,2]
[403636119,1769436643344,-209.463132,0.00019178,2]
[403636120,1769436643353,-1388.097238,0.00019178,2]
[403636121,1769436643363,-1388.097238,0.00019178,2]
[403636122,1769436643373,-1388.097238,0.00019178,2]
[403636123,1769436643385,-1388.097238,0.00019178,2]
[403636124,1769436643395,-151.0,0.00019178,2]
[403636125,1769436643405,-151.0,0.00019178,2]
[403636126,1769436643414,-151.0,0.00019178,2]
[403636127,1769436643425,-151.0,0.00019178,2]
[403636128,1769436643435,-372.523656,0.00019178,2]
[403636129,1769436643445,-298.118317,0.00019178,2]
[403636130,1769436643454,-372.523656,0.00019178,2]
[403636131,1769436643463,-372.523656,0.00019178,2]
[403636132,1769436643473,-372.523656,0.00019178,2]
[403636133,1769436643482,-151.0,0.00019178,2]
[403636134,1769436643491,-151.0,0.00019178,2]
[403636135,1769436643500,-151.0,0.00019178,2]
[403636136,1769436643509,-288.225424,0.00019178,2]
[403636137,1769436643519,-288.225424,0.00019178,2]
[403636138,1769436643528,-288.225424,0.00019178,2]
[403636139,1769436643538,-288.225424,0.00019178,2]
[403636140,1769436643547,-151.0,0.00019178,2]
[403636141,1769436643557,-151.0,0.00019178,2]
[403636142,1769436643566,-1434.333059,0.00019178,2]
[403636143,1769436643576,-1434.333059,0.00019178,2]
[403636144,1769436643586,-1434.333059,0.00019178,2]
[403636145,1769436643596,-1434.333059,0.00019178,2]
[403636146,1769436643606,-261.247206,0.00019178,2]
[403636147,1769436643616,-261.247206,0.00019178,2]
[403636148,1769436643626,-261.247206,0.00019178,2]
[403636149,1769436643636,-261.247206,0.00019178,2]
[403636150,1769436643646,-521.937694,0.00019178,2]
[403636151,1769436643656,-521.937694,0.00019178,2]
[403636152,1769436643666,-521.937694,0.00019178,2]
[403636153,1769436643676,-521.937694,0.00019178,2]
[403636154,1769436643686,-221.018412,0.00019178,2]
[403636155,1769436643695,-221.018412,0.00019178,2]
[403636156,1769436643706,-221.018412,0.00019178,2]
[403636157,1769436643716,-220.027929,0.00019178,2]
[403636158,1769436643727,-221.018412,0.00019178,2]
[403636159,1769436643738,-220.027929,0.00019178,2]
[403636160,1769436643748,-220.027929,0.00019178,2]
[403636161,1769436643759,-220.027929,0.00019178,2]
[403636162,1769436643769,-193.150175,0.00019178,2]
[403636163,1769436643779,-193.150175,0.00019178,2]
[403636164,1769436643789,-193.150175,0.00019178,2]
[403636165,1769436643799,-193.150175,0.00019178,2]
[403636166,1769436643949,-330.384159,0.00019178,2]
[403636167,1769436643959,-330.384159,0.00019178,2]
[403636168,1769436643969,-330.384159,0.00019178,2]
[403636169,1769436643978,-330.384159,0.00019178,2]
[403636170,1769436643987,-3719.250888,0.00019178,2]
[403636171,1769436643997,-3719.250888,0.00019178,2]
[403636172,1769436644007,-3719.250888,0.00019178,2]
[403636173,1769436644017,-3719.250888,0.00019178,2]
[403636174,1769436644027,-1935.523974,0.00019178,2]
[403636175,1769436644036,-1935.523974,0.00019178,2]
[403636176,1769436644046,-1935.523974,0.00019178,2]
[403636177,1769436644055,-1935.523974,0.00019178,2]
[403636178,1769436644064,-190.81087,0.00019178,2]
[403636179,1769436644073,-190.81087,0.00019178,2]
[403636180,1769436644082,-190.81087,0.00019178,2]
[403636181,1769436644092,-190.81087,0.00019178,2]
[403636182,1769436644102,-151.0,0.00019178,2]
[403636183,1769436644111,-2033.352556,0.00019178,2]
[403636184,1769436644120,-2033.352556,0.00019178,2]
[403636185,1769436644130,-165.360743,0.00019178,2]
[403636186,1769436644140,-2033.352556,0.00019178,2]
[403636187,1769436644150,-165.360743,0.00019178,2]
[403636188,1769436644159,-2033.352556,0.00019178,2]
[403636189,1769436644169,-165.360743,0.00019178,2]
[403636190,1769436644179,-165.360743,0.00019178,2]
[403636191,1769436644188,-154.182483,0.00019178,2]
[403636192,1769436644197,-154.182483,0.00019178,2]
[403636193,1769436644207,-154.182483,0.00019178,2]
[403636194,1769436644216,-154.182483,0.00019178,2]
[403636195,1769436644225,-151.0,0.00019178,2]
[403636196,1769436644235,-364.193887,0.00019178,2]
[403636197,1769436644244,-364.193887,0.00019178,2]
[403636198,1769436644253,-364.193887,0.00019178,2]
[403636199,1769436644262,-364.193887,0.00019178,2]
[403636200,1769436644271,-1637.025204,0.00019178,2]
[403636201,1769436644280,-1637.025204,0.00019178,2]
[403636202,1769436644289,-1637.025204,0.00019178,2]
[403636203,1769436644299,-1637.025204,0.00019178,2]
[403636204,1769436644308,-151.0,0.00019178,2]
[403636205,1769436644318,-5500.0,0.00019178,2]
[403636206,1769436644327,-168.47,0.000192,2]
[403636207,1769436644342,-4208.61,0.000192,2]
[403636208,1769436644353,-288.87,0.000192,2]
[403636209,1769436644363,-168.09,0.000192,2]
[403636210,1769436644373,-15138.15,0.000192,2]
[403636211,1769436644384,-303.10001603,0.00019278,2]
[403636212,1769436644394,-303.10001603,0.00019278,2]
[403636213,1769436644403,-171.0,0.00019425,3]
[403636214,1769436644413,-303.10001603,0.00019467,2]
[403636215,1769436644426,-303.10001603,0.00019467,2]
[403636216,1769436644436,-1000.0,0.000195,2]
[403636217,1769436644446,-151.0,0.00019547,2]
[403636218,1769436644456,-2876.18991768,0.00019547,2]
[403636219,1769436644465,-164.34495881,0.000196,2]
[403636220,1769436644475,-2986.72,0.0001961,2]
[403636221,1769436644484,-303.10001603,0.00019656,2]
[403636222,1769436644493,-303.10001603,0.00019656,2]
[403636223,1769436644502,-47861.56,0.000197,3]
[403636224,1769436644512,-3561.20479703,0.00019726,2]
[403636225,1769436644522,-800.0,0.00019745,2]
[403636226,1769436644532,-358.0,0.00019746,2]
[403636227,1769436644543,-770.10348176,0.00019751,2]
[403636228,1769436644552,-1288.709849,0.0001976,5]
[403636229,1769436644562,-800.0,0.00019774,2]
[403636230,1769436644572,-1000.0,0.0001978,5]
[403636231,1769436644582,-1000.0,0.000198,5]
[403636232,1769436644593,-168.0,0.00019811,2]
[403636233,1769436644603,-1000.0,0.0001982,5]
[403636234,1769436644613,-800.0,0.00019828,2]
[403636235,1769436644623,-800.0,0.00019833,2]
[403636236,1769436644634,-1000.0,0.0001984,5]
[403636237,1769436644643,-454.65002405,0.00019845,4]
[403636238,1769436644655,-454.65002405,0.00019845,4]
[403636239,1769436644664,-1000.0,0.0001986,5]
[403636240,1769436644673,-1000.0,0.0001988,5]
[403636241,1769436644682,-1000.0,0.000199,5]
[403636242,1769436644691,-226.49,0.000199,2]
[403636243,1769436644701,-1000.0,0.0001992,5]
[403636244,1769436644710,-453.0,0.0001993,2]
[403636245,1769436644719,-1000.0,0.0001994,5]
[403636246,1769436644730,-800.0,0.00019957,2]
[403636247,1769436644740,-1000.0,0.0001996,5]
[403636248,1769436644750,-1000.0,0.0001998,5]
[403636249,1769436644759,-800.0,0.00019982,2]
[403636250,1769436644769,-1596.33487802,0.00019997,7]
[403636251,1769436644778,-1034.40071482,0.00019997,7]
[403636252,1769436644788,-4133.46525642,0.00019997,7]
[403636253,1769436644797,-2118.7037852,0.00019997,7]
[403636254,1769436644807,-995.44206148,0.00019997,7]
[403636255,1769436644816,-1969.94036477,0.00019997,7]
[403636256,1769436644825,-485945.40478379,0.0002,2]
[403636257,1769436645116,-500.0,0.00018999,2]
[403636258,1769436645126,-500.0,0.00018999,2]
[403636259,1769436645135,-147.48168776,0.00018999,2]
[403636260,1769436645147,-352.51831224,0.00018999,2]
[403636261,1769436645158,-365.30968776,0.00018999,2]
[403636263,1769436645170,-208.81886861,0.00018999,2]
[403636265,1769436645179,-2161.74955725,0.0002,2]
[403636309,1769436645667,1871.54396122,0.00034879,120]
[403636328,1769436645893,5000.0,9e-05,10]
[403636358,1769436646141,-35.46512758,8.685e-05,2]
[403636395,1769436646513,-464.53487242,8.685e-05,2]
[403636397,1769436646523,-500.0,8.685e-05,2]
[403636399,1769436646531,-500.0,8.685e-05,2]
[403636401,1769436646540,-500.0,8.685e-05,2]
[403636402,1769436646549,-603.07947849,8.685e-05,2]
[403636403,1769436646558,-500.0,8.685e-05,2]
[403636404,1769436646567,-500.0,8.685e-05,2]
[403636405,1769436646576,-500.0,8.685e-05,2]
[403636406,1769436646585,-500.0,8.685e-05,2]
[403636407,1769436646594,-500.0,8.685e-05,2]
[403636408,1769436646604,-500.0,8.685e-05,2]
[403636409,1769436646613,-500.0,8.685e-05,2]
[403636410,1769436646623,-500.0,8.685e-05,2]
[403636411,1769436646632,-500.0,8.685e-05,2]
[403636412,1769436646642,-500.0,8.685e-05,2]
[403636413,1769436646651,-500.0,8.685e-05,2]
[403636414,1769436646660,-500.0,8.685e-05,2]
[403636415,1769436646670,-500.0,8.685e-05,2]
[403636416,1769436646680,-500.0,8.685e-05,2]
[403636417,1769436646689,-500.0,8.685e-05,2]
[403636418,1769436646699,-500.0,8.685e-05,2]
[403636419,1769436646708,-500.0,8.685e-05,2]
[403636420,1769436646718,-500.0,8.685e-05,2]
[403636421,1769436646727,-500.0,8.685e-05,2]
[403636422,1769436646738,-500.0,8.685e-05,2]
[403636423,1769436646747,-500.0,8.685e-05,2]
[403636424,1769436646757,-500.0,8.685e-05,2]
[403636425,1769436646766,-500.0,8.685e-05,2]
[403636426,1769436646776,-500.0,8.685e-05,2]
[403636427,1769436646785,-500.0,8.685e-05,2]
[403636428,1769436646795,-209.23886114,8.685e-05,2]
[403636429,1769436646804,-500.0,8.685e-05,2]
[403636430,1769436646813,-500.0,8.685e-05,2]
[403636431,1769436646822,-500.0,8.685e-05,2]
[403636432,1769436646832,-500.0,8.685e-05,2]
[403636433,1769436646842,-500.0,8.685e-05,2]
[403636434,1769436646851,-500.0,8.685e-05,2]
[403636435,1769436646860,-500.0,8.685e-05,2]
[403636436,1769436646869,-500.0,8.685e-05,2]
[403636437,1769436646879,-500.0,8.685e-05,2]
[403636438,1769436646887,-500.0,8.685e-05,2]
[403636439,1769436646896,-500.0,8.685e-05,2]
[403636440,1769436646905,-500.0,8.685e-05,2]
[403636441,1769436646914,-500.0,8.685e-05,2]
[403636442,1769436646923,-500.0,8.685e-05,2]
[403636443,1769436646931,-500.0,8.685e-05,2]
[403636444,1769436646940,-500.0,8.685e-05,2]
[403636445,1769436646949,-500.0,8.685e-05,2]
[403636446,1769436646957,-500.0,8.685e-05,2]
[403636447,1769436646966,-500.0,8.685e-05,2]
[403636448,1769436646975,-500.0,8.685e-05,2]
[403636449,1769436646983,-500.0,8.685e-05,2]
[403636450,1769436646992,-500.0,8.685e-05,2]
[403636451,1769436647001,-500.0,8.685e-05,2]
[403636452,1769436647009,-500.0,8.685e-05,2]
[403636453,1769436647018,-500.0,8.685e-05,2]
[403636454,1769436647027,-500.0,8.685e-05,2]
[403636455,1769436647035,-500.0,8.685e-05,2]
[403636456,1769436647044,-500.0,8.685e-05,2]
[403636457,1769436647053,-500.0,8.685e-05,2]
[403636458,1769436647062,-500.0,8.685e-05,2]
[403636459,1769436647070,-500.0,8.685e-05,2]
[403636460,1769436647078,-500.0,8.685e-05,2]
[403636461,1769436647088,-500.0,8.685e-05,2]
[403636462,1769436647097,-500.0,8.685e-05,2]
[403636463,1769436647249,-500.0,8.685e-05,2]
[403636464,1769436647258,-500.0,8.685e-05,2]
[403636465,1769436647267,-500.0,8.685e-05,2]
[403636466,1769436647276,-500.0,8.685e-05,2]
[403636467,1769436647285,-500.0,8.685e-05,2]
[403636468,1769436647294,-318.22826207,8.685e-05,2]
[403636469,1769436647303,-415.0,8.685e-05,2]
[403636470,1769436647313,-500.0,8.685e-05,2]
[403636471,1769436647322,-500.0,8.685e-05,2]
[403636472,1769436647332,-500.0,8.685e-05,2]
[403636473,1769436647344,-230.84663395,8.685e-05,2]
[403636474,1769436647353,-500.0,8.685e-05,2]
[403636475,1769436647364,-500.0,8.685e-05,2]
[403636476,1769436647373,-2081.67592948,0.000129,2]
[403636477,1769436647383,-200.0,0.00018292,7]
[403636478,1769436647392,-500.0,0.00018999,2]
[403636479,1769436647401,-500.0,0.00018999,2]
[403636480,1769436647411,-500.0,0.00018999,2]
[403636481,1769436647422,-209.40437684,0.00018999,2]
[403636482,1769436647433,-500.0,0.00018999,2]
[403636483,1769436647442,-232.651623,0.00019178,2]
[403636484,1769436647452,-232.651623,0.00019178,2]
[403636485,1769436647461,-232.651623,0.00019178,2]
[403636486,1769436647471,-232.651623,0.00019178,2]
[403636487,1769436647480,-1730.827363,0.000195,2]
[403636488,1769436647490,-455.55286101,0.00019547,2]
[403636489,1769436647499,-122851.05194626,0.0002,2]
[403636490,1769436652136,5000.0,9e-05,10]
[403636491,1769436659889,5000.0,9e-05,10]
[403636492,1769436667909,5000.0,9e-05,10]
[403636493,1769436672996,564.0,0.00034879,120]
[403636494,1769436676815,5000.0,9e-05,10]
[403636495,1769436736898,1000.0,0.00030136,120]
[403636500,1769436911479,500.0,0.00027397,120]
[403636501,1769436911935,500.0,0.00030137,120]
[403636502,1769436954052,300.0,7.562e-05,120]
[403636503,1769437167574,13000.0,0.00034747,120]
[403636504,1769437289962,211.64112896,0.00034747,120]
[403636505,1769437290345,211.64112896,0.00034747,120]
[403636506,1769437290740,211.64112896,0.00034747,120]
[403636507,1769437291096,211.64112896,0.00034747,120]
[403636508,1769437291546,211.64112896,0.00034747,120]
[403636509,1769437291935,211.64112896,0.00034747,120]
[403636510,1769437292316,211.64112896,0.00034747,120]
[403636511,1769437292704,211.64112896,0.00034747,120]
[403636512,1769437310965,160.78,6.6e-05,2]
[403636513,1769437311809,160.78,6.6e-05,2]
[403636514,1769437354269,1000.0,0.00030136,120]
[403636515,1769437393320,12890.55874741,0.00034747,120]
[403636516,1769437546416,-522.0,7.184e-05,2]
[403636517,1769437546441,-261.60967107,7.192e-05,2]
[403636518,1769437546460,-1018.28,7.2e-05,2]
[403636519,1769437546480,-300.0,7.631e-05,2]
[403636520,1769437546499,-194.0,7.778e-05,2]
[403636521,1769437546519,-300.0,7.778e-05,2]
[403636522,1769437546540,-300.0,7.778e-05,2]
[403636523,1769437546562,-1200.0,7.778e-05,2]
[403636524,1769437546585,-500.0,7.779e-05,2]
[403636525,1769437546607,-500.0,7.779e-05,2]
[403636526,1769437546629,-500.0,7.779e-05,2]
[403636527,1769437546654,-500.0,7.779e-05,2]
[403636528,1769437546675,-500.0,7.779e-05,2]
[403636529,1769437546698,-500.0,7.779e-05,2]
[403636530,1769437546718,-500.0,7.779e-05,2]
[403636531,1769437546740,-500.0,7.779e-05,2]
[403636532,1769437546764,-500.0,7.779e-05,2]
[403636533,1769437546785,-500.0,7.779e-05,2]
[403636534,1769437546808,-500.0,7.779e-05,2]
[403636535,1769437546831,-500.0,7.779e-05,2]
[403636536,1769437546855,-500.0,7.779e-05,2]
[403636537,1769437546876,-239.86500346,7.779e-05,2]
[403636538,1769437546898,-339.6792166,7.779e-05,2]
[403636539,1769437546921,-500.0,7.779e-05,2]
[403636540,1769437546944,-500.0,7.779e-05,2]
[403636541,1769437546966,-188.35963351,7.779e-05,2]
[403636542,1769437546990,-500.0,7.779e-05,2]
[403636543,1769437547012,-500.0,7.779e-05,2]
[403636544,1769437547039,-500.0,7.779e-05,2]
[403636545,1769437547062,-500.0,7.779e-05,2]
[403636546,1769437547086,-500.0,7.779e-05,2]
[403636547,1769437547108,-500.0,7.779e-05,2]
[403636548,1769437547133,-500.0,7.779e-05,2]
[403636549,1769437547156,-500.0,7.779e-05,2]
[403636550,1769437547179,-500.0,7.779e-05,2]
[403636551,1769437547202,-201.20063336,7.779e-05,2]
[403636552,1769437558702,-298.79936664,7.779e-05,2]
[403636553,1769437558725,-500.0,7.779e-05,2]
[403636554,1769437558748,-201.20063336,7.779e-05,2]
[403636555,1769437559772,-298.79936664,7.779e-05,2]
[403636556,1769437559797,-500.0,7.779e-05,2]
[403636557,1769437559822,-201.20063336,7.779e-05,2]
[403636558,1769437560104,-298.79936664,7.779e-05,2]
[403636559,1769437560127,-500.0,7.779e-05,2]
[403636560,1769437560151,-201.20063336,7.779e-05,2]
[403636561,1769437560412,-298.79936664,7.779e-05,2]
[403636562,1769437560436,-500.0,7.779e-05,2]
[403636563,1769437560460,-201.20063336,7.779e-05,2]
[403636564,1769437560742,-298.79936664,7.779e-05,2]
[403636565,1769437560767,-500.0,7.779e-05,2]
[403636566,1769437560791,-201.20063336,7.779e-05,2]
[403636567,1769437561183,-298.79936664,7.779e-05,2]
[403636568,1769437561207,-500.0,7.779e-05,2]
[403636569,1769437561230,-201.20063336,7.779e-05,2]
[403636570,1769437561737,-298.79936664,7.779e-05,2]
[403636571,1769437561760,-500.0,7.779e-05,2]
[403636572,1769437561783,-201.20063336,7.779e-05,2]
[403636573,1769437562068,-257.39004198,7.779e-05,2]
[403636574,1769437562093,-500.0,7.779e-05,2]
[403636575,1769437562117,-242.60995802,7.779e-05,2]
[403636576,1769437562555,-257.39004198,7.779e-05,2]
[403636577,1769437562580,-500.0,7.779e-05,2]
[403636578,1769437562606,-242.60995802,7.779e-05,2]
[403636579,1769437564164,-300.0,7.778e-05,2]
[403636580,1769437564187,-257.39004198,7.779e-05,2]
[403636581,1769437564209,-442.60995802,7.779e-05,2]
[403636582,1769437564457,-57.39004198,7.779e-05,2]
[403636583,1769437564480,-500.0,7.779e-05,2]
[403636584,1769437564503,-442.60995802,7.779e-05,2]
[403636585,1769437564829,-57.39004198,7.779e-05,2]
[403636586,1769437564857,-500.0,7.779e-05,2]
[403636587,1769437564881,-442.60995802,7.779e-05,2]
[403636588,1769437565146,-57.39004198,7.779e-05,2]
[403636589,1769437565170,-300.0,7.779e-05,2]
[403636590,1769437565193,-500.0,7.779e-05,2]
[403636591,1769437565217,-142.60995802,7.779e-05,2]
[403636592,1769437565549,-357.39004198,7.779e-05,2]